fUSD/lending_fUSD_20250620
["ID","MTS","AMOUNT","RATE_DAILY","PERIOD"]
[366766578,1750440651223,-270.812588,0.00026492,7]
[366766579,1750440651234,-270.812588,0.00026492,7]
[366766580,1750440651244,-270.812588,0.00026492,7]
[366766581,1750440651254,-270.812588,0.00026492,7]
[366766582,1750440651263,-270.812588,0.00026492,7]
[366766583,1750440651273,-270.812588,0.00026492,7]
[366766584,1750440651282,-270.812588,0.00026492,7]
[366766585,1750440651292,-270.812588,0.00026492,7]
[366766586,1750440651301,-270.812588,0.00026492,7]
[366766587,1750440651311,-270.812588,0.00026492,7]
[366766588,1750440651321,-151.0,0.00026492,7]
[366766589,1750440651331,-151.0,0.00026492,7]
[366766590,1750440651341,-151.0,0.00026492,7]
[366766591,1750440651351,-151.0,0.00026492,7]
[366766592,1750440651362,-151.0,0.00026492,7]
[366766593,1750440651371,-151.0,0.00026492,7]
[366766594,1750440651381,-151.0,0.00026492,7]
[366766595,1750440651391,-151.0,0.00026492,7]
[366766596,1750440651401,-151.0,0.00026492,7]
[366766597,1750440651411,-151.0,0.00026492,7]
[366766598,1750440651421,-278.086048,0.00026492,7]
[366766599,1750440651431,-151.0,0.00026492,7]
[366766600,1750440651440,-151.0,0.00026492,7]
[366766601,1750440651450,-151.0,0.00026492,7]
[366766602,1750440651459,-151.0,0.00026492,7]
[366766603,1750440651469,-151.0,0.00026492,7]
[366766604,1750440651479,-151.0,0.00026492,7]
[366766605,1750440651494,-151.0,0.00026492,7]
[366766606,1750440651504,-151.0,0.00026492,7]
[366766607,1750440651513,-250.787156,0.00026492,7]
[366766608,1750440651523,-151.0,0.00026492,7]
[366766609,1750440651533,-151.0,0.00026492,7]
[366766610,1750440651542,-151.0,0.00026492,7]
[366766611,1750440651551,-151.0,0.00026492,7]
[366766612,1750440651560,-151.0,0.00026492,7]
[366766613,1750440651570,-151.0,0.00026492,7]
[366766614,1750440651579,-151.0,0.00026492,7]
[366766615,1750440651589,-151.0,0.00026492,7]
[366766616,1750440651598,-151.0,0.00026492,7]
[366766617,1750440651607,-151.0,0.00026492,7]
[366766618,1750440651617,-159.568078,0.00026492,7]
[366766619,1750440651626,-1535.214058,0.00026492,7]
[366766620,1750440651635,-1535.214058,0.00026492,7]
[366766621,1750440651644,-1535.214058,0.00026492,7]
[366766622,1750440651654,-1535.214058,0.00026492,7]
[366766623,1750440651663,-1535.214058,0.00026492,7]
[366766624,1750440651672,-1535.214063,0.00026492,7]
[366766625,1750440651682,-1167.714319,0.00026492,7]
[366766626,1750440651692,-1167.714319,0.00026492,7]
[366766627,1750440651701,-1167.714319,0.00026492,7]
[366766628,1750440651711,-1167.714319,0.00026492,7]
[366766629,1750440651721,-1167.714319,0.00026492,7]
[366766630,1750440651735,-1167.714319,0.00026492,7]
[366766631,1750440651744,-1167.714319,0.00026492,7]
[366766632,1750440651754,-1167.714319,0.00026492,7]
[366766633,1750440651765,-151.0,0.00026492,7]
[366766634,1750440651774,-151.0,0.00026492,7]
[366766635,1750440651783,-151.0,0.00026492,7]
[366766636,1750440651794,-151.0,0.00026492,7]
[366766637,1750440651804,-151.0,0.00026492,7]
[366766638,1750440651813,-151.0,0.00026492,7]
[366766639,1750440651823,-151.0,0.00026492,7]
[366766640,1750440651832,-151.0,0.00026492,7]
[366766641,1750440651842,-151.0,0.00026492,7]
[366766642,1750440651851,-151.0,0.00026492,7]
[366766643,1750440651861,-151.0,0.00026492,7]
[366766644,1750440651870,-151.0,0.00026492,7]
[366766645,1750440651880,-151.0,0.00026492,7]
[366766646,1750440651889,-151.0,0.00026493,7]
[366766647,1750440651898,-300.334588,0.00026493,7]
[366766648,1750440651908,-313.515,0.00026494,7]
[366766649,1750440651918,-313.515,0.00026494,7]
[366766650,1750440651929,-151.0,0.00026494,7]
[366766651,1750440651939,-239.69400962,0.00026496,2]
[366766652,1750440651951,-151.0,0.00026497,7]
[366766653,1750440651962,-153.095512,0.00026497,7]
[366766654,1750440651974,-151.0,0.00026497,7]
[366766655,1750440651990,-151.0,0.00026497,7]
[366766656,1750440652000,-151.0,0.00026497,7]
[366766657,1750440652009,-548.674262,0.00026497,7]
[366766658,1750440652019,-548.674262,0.00026497,7]
[366766659,1750440652029,-548.674262,0.00026497,7]
[366766660,1750440652038,-548.674262,0.00026497,7]
[366766661,1750440652047,-194.92956,0.00026497,7]
[366766662,1750440652057,-194.92956,0.00026497,7]
[366766663,1750440652067,-194.92956,0.00026497,7]
[366766664,1750440652274,-194.92956,0.00026497,7]
[366766665,1750440652284,-270.812588,0.00026497,7]
[366766666,1750440652294,-270.812588,0.00026497,7]
[366766667,1750440652304,-270.812588,0.00026497,7]
[366766668,1750440652313,-270.812588,0.00026497,7]
[366766669,1750440652322,-150.0,0.00026497,2]
[366766670,1750440652332,-500.0,0.00026497,2]
[366766671,1750440652341,-500.0,0.00026497,2]
[366766672,1750440652350,-500.0,0.00026497,4]
[366766673,1750440652360,-500.0,0.00026497,4]
[366766674,1750440652369,-151.0,0.00026497,7]
[366766675,1750440652379,-151.0,0.00026497,7]
[366766676,1750440652389,-151.0,0.00026497,7]
[366766677,1750440652400,-151.0,0.00026497,7]
[366766678,1750440652411,-151.0,0.00026497,7]
[366766679,1750440652421,-151.0,0.00026497,7]
[366766680,1750440652430,-151.0,0.00026498,7]
[366766681,1750440652440,-332.649008,0.00026498,7]
[366766682,1750440652450,-332.649008,0.00026498,7]
[366766683,1750440652459,-151.0,0.00026498,7]
[366766684,1750440652469,-299.962651,0.00026498,7]
[366766685,1750440652479,-299.962651,0.00026498,7]
[366766686,1750440652491,-151.0,0.00026498,7]
[366766687,1750440652500,-548.674262,0.00026498,7]
[366766688,1750440652510,-548.674262,0.00026498,7]
[366766689,1750440652519,-194.92956,0.00026498,7]
[366766690,1750440652528,-194.92956,0.00026498,7]
[366766691,1750440652538,-270.812588,0.00026498,7]
[366766692,1750440652547,-150.0,0.00026498,2]
[366766693,1750440652557,-270.812588,0.00026498,7]
[366766694,1750440652566,-151.0,0.00026498,7]
[366766695,1750440652576,-1167.714319,0.00026498,7]
[366766696,1750440652586,-1167.714316,0.00026498,7]
[366766697,1750440652596,-151.0,0.00026498,7]
[366766698,1750440652605,-151.0,0.00026498,7]
[366766699,1750440652615,-151.0,0.00026499,7]
[366766700,1750440652624,-151.0,0.00026499,7]
[366766701,1750440652634,-151.0,0.00026499,7]
[366766702,1750440652644,-151.0,0.00026499,7]
[366766703,1750440652653,-151.0,0.00026499,7]
[366766704,1750440652662,-151.0,0.00026499,7]
[366766705,1750440652672,-151.0,0.00026499,7]
[366766706,1750440652683,-185.21669,0.00026499,7]
[366766707,1750440652694,-405.364098,0.00026499,7]
[366766708,1750440652705,-405.364098,0.00026499,7]
[366766709,1750440652715,-405.364098,0.00026499,7]
[366766710,1750440652730,-405.364098,0.00026499,7]
[366766711,1750440652741,-7255.50699494,0.00026499,2]
[366766712,1750440652750,-332.649008,0.00026499,7]
[366766713,1750440652760,-332.649014,0.00026499,7]
[366766714,1750440652770,-2000.0,0.00026499,2]
[366766715,1750440652780,-151.0,0.00026499,7]
[366766716,1750440652789,-151.0,0.00026499,7]
[366766717,1750440652799,-151.0,0.00026499,7]
[366766718,1750440652810,-151.0,0.00026499,7]
[366766719,1750440652821,-162.798659,0.00026499,7]
[366766720,1750440652831,-162.798659,0.00026499,7]
[366766721,1750440652840,-162.798659,0.00026499,7]
[366766722,1750440652849,-162.798659,0.00026499,7]
[366766723,1750440652858,-162.798659,0.00026499,7]
[366766724,1750440652868,-162.798659,0.00026499,7]
[366766725,1750440652877,-162.798659,0.00026499,7]
[366766726,1750440652887,-162.798659,0.00026499,7]
[366766727,1750440652898,-299.962651,0.00026499,7]
[366766728,1750440652908,-299.96266,0.00026499,7]
[366766729,1750440652918,-474.113396,0.00026499,7]
[366766730,1750440652928,-474.113396,0.00026499,7]
[366766731,1750440652938,-151.0,0.00026499,7]
[366766732,1750440652948,-151.0,0.00026499,7]
[366766733,1750440652957,-313.515,0.00026499,7]
[366766734,1750440652967,-313.515,0.00026499,7]
[366766735,1750440652976,-313.515,0.00026499,7]
[366766736,1750440652987,-313.515,0.00026499,7]
[366766737,1750440652997,-313.515,0.00026499,7]
[366766738,1750440653006,-313.515,0.00026499,7]
[366766739,1750440653016,-548.674262,0.00026499,7]
[366766740,1750440653027,-548.674262,0.00026499,7]
[366766741,1750440653036,-548.674262,0.00026499,7]
[366766742,1750440653047,-548.674261,0.00026499,7]
[366766743,1750440653056,-151.0,0.00026499,7]
[366766744,1750440653066,-194.92956,0.00026499,7]
[366766745,1750440653075,-194.92956,0.00026499,7]
[366766746,1750440653084,-194.92956,0.00026499,7]
[366766747,1750440653094,-194.92956,0.00026499,7]
[366766748,1750440653103,-150.0,0.00026499,4]
[366766749,1750440653113,-150.0,0.00026499,4]
[366766750,1750440653122,-1500.0,0.00026499,14]
[366766751,1750440653132,-1500.0,0.00026499,14]
[366766752,1750440653141,-1500.0,0.00026499,14]
[366766753,1750440653151,-1500.0,0.00026499,14]
[366766754,1750440653161,-1500.0,0.00026499,14]
[366766755,1750440653170,-1500.0,0.00026499,14]
[366766756,1750440653180,-1500.0,0.00026499,14]
[366766757,1750440653189,-1500.0,0.00026499,14]
[366766758,1750440653200,-1500.0,0.00026499,14]
[366766759,1750440653209,-1500.0,0.00026499,14]
[366766760,1750440653219,-1500.0,0.00026499,14]
[366766761,1750440653229,-1500.0,0.00026499,14]
[366766762,1750440653243,-1500.0,0.00026499,14]
[366766763,1750440653253,-1500.0,0.00026499,14]
[366766764,1750440653263,-1500.0,0.00026499,14]
[366766765,1750440653273,-1500.0,0.00026499,14]
[366766766,1750440653283,-1500.0,0.00026499,14]
[366766767,1750440653292,-1500.0,0.00026499,14]
[366766768,1750440653302,-1500.0,0.00026499,14]
[366766769,1750440653312,-1500.0,0.00026499,14]
[366766770,1750440653321,-1500.0,0.00026499,14]
[366766771,1750440653331,-1500.0,0.00026499,14]
[366766772,1750440653340,-1500.0,0.00026499,14]
[366766773,1750440653349,-1500.0,0.00026499,14]
[366766774,1750440653359,-1500.0,0.00026499,14]
[366766775,1750440653369,-1500.0,0.00026499,14]
[366766776,1750440653378,-1500.0,0.00026499,14]
[366766777,1750440653388,-1500.0,0.00026499,14]
[366766778,1750440653398,-1500.0,0.00026499,14]
[366766779,1750440653407,-1500.0,0.00026499,14]
[366766780,1750440653418,-1500.0,0.00026499,14]
[366766781,1750440653428,-1500.0,0.00026499,14]
[366766782,1750440653437,-1500.0,0.00026499,14]
[366766783,1750440653447,-1500.0,0.00026499,14]
[366766784,1750440653457,-1500.0,0.00026499,14]
[366766785,1750440653466,-1500.0,0.00026499,14]
[366766786,1750440653476,-1500.0,0.00026499,14]
[366766787,1750440653488,-1500.0,0.00026499,14]
[366766788,1750440653497,-1500.0,0.00026499,14]
[366766789,1750440653507,-1500.0,0.00026499,14]
[366766790,1750440653517,-1500.0,0.00026499,14]
[366766791,1750440653526,-1500.0,0.00026499,14]
[366766792,1750440653536,-1500.0,0.00026499,14]
[366766793,1750440653545,-1500.0,0.00026499,14]
[366766794,1750440653555,-270.812588,0.00026499,7]
[366766795,1750440653564,-1500.0,0.00026499,14]
[366766796,1750440653574,-270.812588,0.00026499,7]
[366766797,1750440653583,-1500.0,0.00026499,14]
[366766798,1750440653595,-1500.0,0.00026499,14]
[366766799,1750440653608,-231.842197,0.00026499,14]
[366766800,1750440653618,-270.812588,0.00026499,7]
[366766801,1750440653633,-270.81259,0.00026499,7]
[366766802,1750440653645,-500.0,0.00026499,2]
[366766803,1750440653654,-500.0,0.00026499,2]
[366766804,1750440653664,-567.74,0.00026499,4]
[366766805,1750440653674,-190.0,0.00026499,4]
[366766806,1750440653683,-151.0,0.00026499,7]
[366766807,1750440653693,-151.0,0.00026499,7]
[366766808,1750440653703,-150.0,0.00026499,2]
[366766809,1750440653713,-150.0,0.00026499,4]
[366766810,1750440653727,-211.96842198,0.00026499,4]
[366766811,1750440653743,-152.1873958,0.00026499,4]
[366766812,1750440653752,-256.49758292,0.00026499,4]
[366766813,1750440653763,-151.0,0.00026499,7]
[366766814,1750440653772,-151.0,0.00026499,7]
[366766815,1750440653782,-301.536054,0.00026499,7]
[366766816,1750440653792,-150.0,0.00026499,4]
[366766817,1750440653801,-150.0,0.00026499,4]
[366766818,1750440653812,-150.0,0.00026499,2]
[366766819,1750440653821,-500.0,0.00026499,4]
[366766820,1750440653831,-250000.0,0.000265,2]
[366766821,1750440653841,-151.0,0.000265,7]
[366766822,1750440653851,-151.0,0.000265,7]
[366766823,1750440653861,-151.0,0.000265,7]
[366766824,1750440653870,-151.0,0.000265,7]
[366766825,1750440653880,-405.364098,0.000265,7]
[366766826,1750440653889,-405.364098,0.000265,7]
[366766827,1750440653900,-405.364098,0.000265,7]
[366766828,1750440653910,-405.364098,0.000265,7]
[366766829,1750440653920,-162.798659,0.000265,7]
[366766830,1750440653929,-162.798659,0.000265,7]
[366766831,1750440653940,-474.113396,0.000265,7]
[366766832,1750440653949,-151.0,0.000265,7]
[366766833,1750440653959,-313.515,0.000265,7]
[366766834,1750440653969,-313.515,0.000265,7]
[366766835,1750440653979,-194.92956,0.000265,7]
[366766836,1750440653991,-194.92956,0.000265,7]
[366766837,1750440654001,-172.956,0.000265,13]
[366766838,1750440654011,-2519.249,0.00026505,13]
[366766839,1750440654020,-150.0,0.00026507,2]
[366766840,1750440654030,-186.940268,0.00026511,7]
[366766841,1750440654040,-259.90906,0.00026511,7]
[366766842,1750440654050,-405.364098,0.00026511,7]
[366766843,1750440654060,-405.364098,0.00026511,7]
[366766844,1750440654070,-239.69400962,0.00026525,2]
[366766845,1750440654080,-150.0,0.00026526,4]
[366766846,1750440654089,-150.0,0.00026526,2]
[366766847,1750440654099,-150.0,0.00026526,4]
[366766848,1750440654108,-150.0,0.00026526,4]
[366766849,1750440654118,-289.91052112,0.00026526,4]
[366766850,1750440654128,-500.0,0.00026526,4]
[366766851,1750440654137,-2333.0,0.00026528,2]
[366766852,1750440654147,-1142.64466,0.0002653,2]
[366766853,1750440654157,-185.83090649,0.00026542,2]
[366766854,1750440654166,-150.0,0.00026551,2]
[366766855,1750440654176,-255.71163978,0.00026554,4]
[366766856,1750440654185,-200.0,0.00026554,2]
[366766857,1750440654195,-150.0,0.00026554,4]
[366766858,1750440654205,-150.0,0.00026554,4]
[366766859,1750440654215,-470.0,0.00026554,4]
[366766860,1750440654225,-239.69400962,0.00026555,2]
[366766861,1750440654238,-150.0,0.00026559,2]
[366766862,1750440654248,-1000.0,0.0002656,2]
[366766863,1750440654258,-168.0,0.00026577,2]
[366766864,1750440654268,-150.0,0.0002658,2]
[366766865,1750440654278,-150.0,0.00026581,4]
[366766866,1750440654288,-150.0,0.00026581,4]
[366766867,1750440654298,-239.69400962,0.00026584,2]
[366766868,1750440654307,-150.0,0.00026589,2]
[366766869,1750440654317,-474.113396,0.00026592,7]
[366766870,1750440654327,-151.0,0.00026592,7]
[366766871,1750440654336,-313.515,0.00026592,7]
[366766872,1750440654346,-313.515,0.00026592,7]
[366766873,1750440654356,-194.92956,0.00026592,7]
[366766874,1750440654366,-194.929556,0.00026592,7]
[366766875,1750440654375,-150.0,0.00026608,2]
[366766876,1750440654385,-205.0,0.00026609,4]
[366766877,1750440654395,-150.0,0.00026609,4]
[366766878,1750440654405,-239.69400962,0.00026613,2]
[366766879,1750440654415,-150.0,0.00026618,2]
[366766880,1750440654425,-150.0,0.00026628,2]
[366766881,1750440654434,-150.0,0.00026628,2]
[366766882,1750440654444,-150.0,0.0002663,2]
[366766883,1750440654453,-250.0,0.00026636,4]
[366766884,1750440654463,-150.0,0.00026641,2]
[366766885,1750440654473,-239.69400962,0.00026642,2]
[366766886,1750440654483,-150.0,0.00026645,2]
[366766887,1750440654493,-4181.38722174,0.00026655,2]
[366766888,1750440654503,-150.0,0.00026655,2]
[366766889,1750440654513,-150.0,0.00026656,2]
[366766890,1750440654522,-405.364098,0.00026658,7]
[366766891,1750440654533,-405.364098,0.00026658,7]
[366766892,1750440654542,-162.798659,0.00026658,7]
[366766893,1750440654552,-162.798659,0.00026658,7]
[366766894,1750440654563,-162.798659,0.00026658,7]
[366766895,1750440654573,-162.798659,0.00026658,7]
[366766896,1750440654582,-474.113396,0.00026658,7]
[366766897,1750440654592,-474.113397,0.00026658,7]
[366766898,1750440654602,-313.515,0.00026658,7]
[366766899,1750440654611,-313.515,0.00026658,7]
[366766900,1750440654621,-313.515,0.00026658,7]
[366766901,1750440654631,-313.515,0.00026658,7]
[366766902,1750440654843,-500.0,0.00026658,2]
[366766903,1750440654853,-117905.85616112,0.00026658,2]
[366766904,1750440654864,-5000.0,0.0002666,5]
[366766905,1750440654875,-5000.0,0.0002666,6]
[366766906,1750440654885,-5000.0,0.0002666,7]
[366766907,1750440654895,-5000.0,0.0002666,8]
[366766908,1750440654905,-5000.0,0.0002666,9]
[366766909,1750440654916,-5000.0,0.0002666,21]
[366766910,1750440654927,-854.91922948,0.00026667,2]
[366766911,1750440654937,-150.0,0.00026671,2]
[366766912,1750440654946,-239.69400962,0.00026672,2]
[366766913,1750440654956,-150.0,0.00026673,2]
[366766914,1750440654965,-151.0,0.00026682,7]
[366766915,1750440654975,-405.364098,0.00026682,7]
[366766916,1750440654993,-405.364098,0.00026682,7]
[366766917,1750440655002,-150.0,0.00026683,2]
[366766918,1750440655012,-150.0,0.00026683,2]
[366766919,1750440655022,-150.0,0.00026683,2]
[366766920,1750440655033,-151.0,0.00026684,7]
[366766921,1750440655042,-151.0,0.00026684,7]
[366766922,1750440655052,-151.0,0.00026684,7]
[366766923,1750440655062,-151.0,0.00026684,7]
[366766924,1750440655071,-405.364098,0.00026684,7]
[366766925,1750440655081,-405.364098,0.00026684,7]
[366766926,1750440655090,-405.364098,0.00026684,7]
[366766927,1750440655100,-405.364098,0.00026684,7]
[366766928,1750440655110,-151.0,0.00026685,7]
[366766929,1750440655119,-151.0,0.00026685,7]
[366766930,1750440655129,-151.0,0.00026685,7]
[366766931,1750440655138,-151.0,0.00026685,7]
[366766932,1750440655148,-162.798659,0.00026686,7]
[366766933,1750440655157,-162.798656,0.00026686,7]
[366766934,1750440655167,-150.0,0.0002669,2]
[366766935,1750440655177,-2064.44842587,0.00026693,2]
[366766936,1750440655188,-151.0,0.00026693,7]
[366766937,1750440655197,-151.0,0.00026693,7]
[366766938,1750440655207,-151.0,0.00026693,7]
[366766939,1750440655216,-151.0,0.00026693,7]
[366766940,1750440655226,-151.0,0.00026693,7]
[366766941,1750440655242,-151.0,0.00026693,7]
[366766942,1750440655252,-151.0,0.00026693,7]
[366766943,1750440655262,-151.0,0.00026693,7]
[366766944,1750440655273,-151.0,0.00026693,7]
[366766945,1750440655282,-151.0,0.00026693,7]
[366766946,1750440655292,-151.0,0.00026693,7]
[366766947,1750440655301,-151.0,0.00026693,7]
[366766948,1750440655312,-405.364098,0.00026693,7]
[366766949,1750440655322,-405.36409,0.00026693,7]
[366766950,1750440655331,-151.0,0.00026694,7]
[366766951,1750440655342,-151.0,0.00026694,7]
[366766952,1750440655351,-239.673524,0.00026695,7]
[366766953,1750440655361,-293.489088,0.00026695,7]
[366766954,1750440655371,-151.0,0.00026695,7]
[366766955,1750440655382,-151.0,0.00026695,7]
[366766956,1750440655392,-151.0,0.00026695,7]
[366766957,1750440655402,-168.0,0.00026697,2]
[366766958,1750440655411,-842.73500723,0.000267,2]
[366766959,1750440655421,-25699.2,0.000267,2]
[366766960,1750440655431,-239.69400962,0.00026701,2]
[366766961,1750440655441,-559.0,0.00026703,2]
[366766962,1750440655451,-1412.303,0.00026703,2]
[366766963,1750440655461,-2004.0,0.00026703,2]
[366766964,1750440655471,-591.0,0.00026703,2]
[366766965,1750440655480,-928.0,0.00026703,2]
[366766966,1750440655497,-1675.0,0.00026703,2]
[366766967,1750440655506,-1161.0,0.00026703,2]
[366766968,1750440655516,-946.0,0.00026703,2]
[366766969,1750440655527,-3334.0,0.00026703,2]
[366766970,1750440655537,-156.0,0.00026703,2]
[366766971,1750440655547,-7117.0,0.00026703,2]
[366766972,1750440655557,-239.69400962,0.0002673,2]
[366766973,1750440655568,-168.0,0.00026752,7]
[366766974,1750440655579,-490.0,0.00026753,4]
[366766975,1750440655589,-490.0,0.00026753,4]
[366766976,1750440655599,-490.0,0.00026753,4]
[366766977,1750440655610,-490.0,0.00026753,4]
[366766978,1750440655621,-207.79236862,0.00026753,4]
[366766979,1750440655631,-490.0,0.00026753,4]
[366766980,1750440655642,-501.65,0.00026753,4]
[366766981,1750440655653,-490.0,0.00026753,4]
[366766982,1750440655663,-490.0,0.00026753,4]
[366766983,1750440655673,-830.23,0.00026753,4]
[366766984,1750440655682,-490.0,0.00026753,4]
[366766985,1750440655693,-490.0,0.00026753,4]
[366766986,1750440655702,-665.05,0.00026753,4]
[366766987,1750440655712,-736.8,0.00026753,4]
[366766988,1750440655722,-490.0,0.00026753,4]
[366766989,1750440655743,-490.0,0.00026753,4]
[366766990,1750440655753,-490.0,0.00026753,4]
[366766991,1750440655763,-490.0,0.00026753,4]
[366766992,1750440655775,-490.0,0.00026753,4]
[366766993,1750440655785,-490.0,0.00026753,4]
[366766994,1750440655796,-490.0,0.00026753,4]
[366766995,1750440655806,-2220.12,0.00026753,4]
[366766996,1750440655817,-490.0,0.00026753,4]
[366766997,1750440655827,-490.0,0.00026753,4]
[366766998,1750440655837,-713.54,0.00026753,4]
[366766999,1750440655846,-1265.1,0.00026753,4]
[366767000,1750440655856,-490.0,0.00026753,4]
[366767001,1750440655865,-535.39,0.00026753,4]
[366767002,1750440655875,-793.31,0.00026753,4]
[366767003,1750440655885,-666.61,0.00026753,4]
[366767004,1750440655894,-1348.24,0.00026753,4]
[366767005,1750440655904,-490.0,0.00026753,4]
[366767006,1750440655914,-490.0,0.00026753,4]
[366767007,1750440655924,-490.0,0.00026753,4]
[366767008,1750440655933,-490.0,0.00026753,4]
[366767009,1750440655943,-490.0,0.00026753,4]
[366767010,1750440655952,-341.37578272,0.00026753,4]
[366767011,1750440655962,-490.0,0.00026753,4]
[366767012,1750440655972,-490.0,0.00026753,4]
[366767013,1750440655983,-1177.57,0.00026753,4]
[366767014,1750440655998,-490.0,0.00026753,4]
[366767015,1750440656008,-490.0,0.00026753,4]
[366767016,1750440656018,-490.0,0.00026753,4]
[366767017,1750440656027,-490.0,0.00026753,2]
[366767018,1750440656037,-771.36,0.00026753,4]
[366767019,1750440656046,-12985.333627,0.00026753,4]
[366767020,1750440656056,-2057.42,0.00026753,4]
[366767021,1750440656066,-490.0,0.00026753,4]
[366767022,1750440656075,-490.0,0.00026753,4]
[366767023,1750440656086,-490.0,0.00026753,4]
[366767024,1750440656096,-490.0,0.00026753,2]
[366767025,1750440656106,-558.83,0.00026753,4]
[366767026,1750440656116,-490.0,0.00026753,4]
[366767027,1750440656126,-490.0,0.00026754,4]
[366767028,1750440656136,-490.0,0.00026754,4]
[366767029,1750440656146,-490.0,0.00026754,4]
[366767030,1750440656155,-490.0,0.00026754,4]
[366767031,1750440656166,-490.0,0.00026754,4]
[366767032,1750440656175,-490.0,0.00026754,4]
[366767033,1750440656185,-490.0,0.00026754,4]
[366767034,1750440656195,-490.0,0.00026754,4]
[366767035,1750440656205,-490.0,0.00026754,4]
[366767036,1750440656214,-716.45,0.00026754,4]
[366767037,1750440656224,-490.0,0.00026754,4]
[366767038,1750440656239,-212.78614852,0.00026754,4]
[366767039,1750440656249,-490.0,0.00026754,4]
[366767040,1750440656259,-490.0,0.00026754,4]
[366767041,1750440656269,-490.0,0.00026754,4]
[366767042,1750440656279,-520.24,0.00026754,4]
[366767043,1750440656289,-490.0,0.00026754,4]
[366767044,1750440656299,-490.0,0.00026754,4]
[366767045,1750440656308,-754.42,0.00026754,4]
[366767046,1750440656318,-490.0,0.00026754,4]
[366767047,1750440656327,-602.12,0.00026754,4]
[366767048,1750440656337,-490.0,0.00026754,4]
[366767049,1750440656347,-490.0,0.00026754,4]
[366767050,1750440656357,-490.0,0.00026754,4]
[366767051,1750440656369,-490.0,0.00026754,4]
[366767052,1750440656379,-905.83,0.00026754,4]
[366767053,1750440656388,-490.0,0.00026754,4]
[366767054,1750440656398,-490.0,0.00026754,4]
[366767055,1750440656408,-490.0,0.00026754,4]
[366767056,1750440656418,-492.17,0.00026754,4]
[366767057,1750440656430,-1393.17,0.00026754,4]
[366767058,1750440656440,-490.0,0.00026754,4]
[366767059,1750440656449,-490.0,0.00026754,4]
[366767060,1750440656459,-500.0,0.00026754,2]
[366767061,1750440656469,-490.0,0.00026754,4]
[366767062,1750440656479,-584.86,0.00026754,4]
[366767063,1750440656493,-490.0,0.00026754,4]
[366767064,1750440656502,-490.0,0.00026754,4]
[366767065,1750440656512,-490.0,0.00026754,4]
[366767066,1750440656521,-490.0,0.00026754,4]
[366767067,1750440656532,-490.0,0.00026754,4]
[366767068,1750440656541,-509.4,0.00026754,4]
[366767069,1750440656551,-721.05,0.00026754,4]
[366767070,1750440656561,-834.17,0.00026754,4]
[366767071,1750440656570,-490.0,0.00026754,4]
[366767072,1750440656580,-490.0,0.00026754,4]
[366767073,1750440656589,-490.0,0.00026754,4]
[366767074,1750440656599,-490.0,0.00026754,4]
[366767075,1750440656609,-554.92,0.00026754,4]
[366767076,1750440656618,-490.0,0.00026754,4]
[366767077,1750440656627,-490.0,0.00026754,4]